bitfinex-derivatives/quotes_ETHF0:USTF0_20250803
["timestamp","ask_amount","ask_price","bid_price","bid_amount"]
[1754221083225,4.0956,3491.9,3491.8,22.9634]
[1754221083834,3.2078,3492.3,3492.2,0.5857]
[1754221083835,1.1876,3492.3,3492.2,0.5857]
[1754221084036,4.1154,3492.3,3492.2,21.183]
[1754221084230,4.1154,3492.3,3492.2,22.0574]
[1754221084427,4.1154,3492.3,3492.2,22.9614]
[1754221084925,3.2078,3492.7,3492.4,1.74467]
[1754221084926,4.1154,3492.5,3492.4,1.74467]
[1754221085122,5.14616775,3492.5,3492.4,23.53407]
[1754221085324,5.14615726,3492.5,3492.4,23.53407]
[1754221085530,4.5185,3492.7,3492.4,21.75567]
[1754221085731,7.3232,3492.7,3492.6,1.172]
[1754221086032,7.3232,3492.7,3492.6,22.9604]
[1754221088032,1.9219,3493.0,3492.9,1.74459]
[1754221088238,1.0,3493.0,3492.9,23.53099]
[1754221089236,2.03055466,3493.0,3492.9,23.53099]
[1754221089439,1.0,3493.0,3492.9,23.53099]
[1754221089649,0.1256,3493.0,3492.9,23.53099]
[1754221089840,1.53786115,3494.1,3492.9,23.53099]
[1754221089841,6.71888822,3493.9,3493.7,0.57245]
[1754221090041,7.3232,3493.9,3493.8,20.5927]
[1754221090235,4.23814965,3493.9,3493.8,20.5927]
[1754221090537,8.35354965,3493.9,3493.8,21.4967]
[1754221090737,7.3232,3493.9,3493.8,21.4967]
[1754221091147,1.6291,3493.5,3493.4,4.6975]
[1754221091349,4.1154,3493.5,3493.4,24.7025]
[1754221091641,4.1154,3493.5,3493.4,21.4947]
[1754221092035,5.14577478,3493.5,3493.4,21.4947]
[1754221092244,4.1154,3493.5,3493.4,0.5857]
[1754221092439,4.1154,3493.5,3493.4,20.004]
[1754221092637,2.4863,3493.4,3493.0,3.2078]
[1754221092841,3.2078,3493.6,3492.9,41.232]
[1754221092842,1.6291,3493.1,3492.9,41.232]
[1754221093048,4.1154,3493.0,3492.9,41.232]
[1754221093346,4.1154,3493.0,3492.9,61.233]
[1754221094740,1.6291,3492.3,3492.2,3.2078]
[1754221094943,4.1154,3492.3,3492.2,23.2088]
[1754221095445,4.1154,3492.3,3492.2,20.001]
[1754221097449,1.9353,3492.3,3492.2,20.5867]
[1754221097646,4.1154,3492.9,3492.8,0.5857]
[1754221097848,5.14597173,3492.9,3492.8,20.5857]
[1754221098050,5.14597173,3492.9,3492.8,0.5857]
[1754221098250,5.14597173,3492.9,3492.8,20.5857]
[1754221098942,5.14597173,3492.9,3492.8,20.0]
[1754221099145,6.16853401,3492.9,3492.8,20.0]
[1754221099447,4.1154,3492.3,3492.2,3.2078]
[1754221099647,5.14597173,3492.3,3492.2,20.001]
[1754221099852,5.14597173,3492.3,3492.2,20.0]
[1754221101546,5.14597173,3492.3,3491.8,44.4338]
[1754221101848,3.4202,3491.9,3491.8,45.3378]
[1754221102051,4.45077173,3491.9,3491.8,65.3378]
[1754221102847,5.14597173,3491.9,3491.8,61.226]
[1754221103853,5.14597173,3491.9,3491.8,20.0]
[1754221104247,6.16853401,3491.9,3491.8,20.0]
[1754221105452,5.14597173,3491.9,3491.8,21.4897]
[1754221105756,1.03057173,3491.9,3491.8,21.4897]
[1754221105946,1.95247173,3491.9,3491.8,21.4897]
[1754221106146,5.14597173,3491.9,3491.8,20.5857]
[1754221106447,4.1154,3491.7,3491.6,0.5857]
[1754221106648,5.14597173,3491.7,3491.6,21.4907]
[1754221107248,3.8235,3492.2,3492.1,0.5857]
[1754221107550,7.64463875,3492.2,3492.1,21.4907]
[1754221107941,8.33983875,3492.2,3492.1,21.4907]
[1754221108657,4.43683875,3492.2,3492.1,21.4907]
[1754221109149,5.13203875,3492.2,3492.1,21.4907]
[1754221109460,1.01663875,3492.2,3492.1,21.4907]
[1754221109754,1.93853875,3492.2,3492.1,21.4907]
[1754221110147,2.8045,3492.2,3492.1,21.4907]
[1754221110448,2.64605905,3492.2,3492.1,20.5867]
[1754221110653,4.1154,3492.2,3492.1,21.4907]
[1754221111054,5.13235491,3492.2,3492.1,21.4907]
[1754221112248,5.13235491,3492.2,3492.1,20.5867]
[1754221112953,5.13260813,3492.2,3492.1,20.5867]
[1754221113151,4.1154,3492.2,3492.1,20.5867]
[1754221114058,4.1154,3492.2,3492.1,23.7945]
[1754221114357,0.6893,3492.6,3492.1,24.36721]
[1754221114558,1.5926,3492.3,3492.2,1.4898]
[1754221114755,3.3714,3492.3,3492.2,1.4898]
[1754221115054,4.0607,3492.3,3492.2,1.4898]
[1754221115657,1.88359068,3492.3,3492.2,1.4898]
[1754221116157,0.866,3492.3,3492.2,1.4898]
[1754221116461,1.8795,3492.3,3492.2,1.4898]
[1754221116654,3.3714,3492.3,3492.2,1.4898]
[1754221116855,4.0607,3492.3,3492.2,1.4898]
[1754221117651,4.0607,3492.3,3492.2,0.5686]
[1754221122457,4.0607,3492.3,3492.2,1.4898]
[1754221125159,4.0607,3492.3,3492.2,0.5686]
[1754221126861,4.0607,3492.3,3492.2,1.4898]
[1754221127562,5.0807415,3492.3,3492.2,1.4898]
[1754221128657,5.0807415,3492.3,3492.2,0.5686]
[1754221130463,5.0807415,3492.3,3492.2,1.4898]
[1754221131365,2.6126415,3492.3,3491.7,0.9212]
[1754221131564,4.0607,3491.6,3491.5,41.80382]
[1754221131757,4.0607,3491.6,3491.5,61.79582]
[1754221132160,4.0607,3491.6,3491.5,62.71702]
[1754221132661,4.0607,3491.6,3491.5,61.79582]
[1754221133268,4.0607,3491.6,3491.5,62.71702]
[1754221133663,4.0607,3491.6,3491.5,41.80382]
[1754221133866,4.0607,3491.6,3487.6,39.014196]
[1754221133867,2.5054,3491.2,3490.4,41.804]
[1754221134170,4.0607,3490.5,3490.4,41.804]
[1754221134469,4.0607,3490.5,3490.4,62.7162]
[1754221134763,4.0607,3490.5,3490.4,41.231]
[1754221135070,4.0607,3490.5,3490.4,61.222]
[1754221137161,4.0607,3490.5,3490.4,19.991]
[1754221138567,4.0607,3490.5,3490.0,0.57306]
[1754221138768,4.0607,3490.2,3490.1,19.993]
[1754221139165,1.5926,3490.2,3489.9,1.0315334]
[1754221139469,4.0607,3490.0,3489.9,2.1732134]
[1754221139672,4.0607,3490.0,3489.9,22.1652134]
[1754221140064,4.0607,3490.0,3489.9,23.0864134]
[1754221143970,4.0607,3490.0,3489.9,22.5133334]
[1754221144270,4.0607,3490.0,3489.9,21.0265334]
[1754221144475,4.0607,3490.0,3489.9,20.3454334]
[1754221148375,4.3813,3490.2,3490.1,1.0499]
[1754221148582,5.2012,3490.2,3490.1,2.5529]
[1754221148973,6.0756,3490.2,3490.1,2.5529]
[1754221149169,2.8678,3490.2,3490.1,2.5529]
[1754221149375,1.9934,3490.2,3490.1,2.5529]
[1754221149882,3.9492,3490.2,3489.9,20.3454334]
[1754221150073,3.3137,3490.1,3490.0,0.6]
[1754221150275,2.4938,3490.1,3489.9,20.3454334]
[1754221150579,2.4938,3490.0,3489.9,20.9454334]
[1754221150877,2.6834,3490.1,3490.0,2.5529]
[1754221151078,3.9492,3490.1,3490.0,2.5529]
[1754221151476,1.0814,3490.1,3490.0,2.5529]
[1754221151678,2.2549,3490.4,3490.3,1.0499]
[1754221151878,2.2549,3490.4,3490.3,22.5469]
[1754221152283,3.9492,3490.4,3490.3,22.5469]
[1754221153382,3.9492,3490.4,3490.3,21.0439]
[1754221153582,3.9492,3490.4,3490.3,19.994]
[1754221153975,1.6194,3490.2,3490.1,19.994]
[1754221154175,1.6194,3490.0,3489.9,0.3514334]
[1754221154381,3.9492,3490.0,3489.9,0.3514334]
[1754221154678,3.2078,3490.2,3489.2,3.2078]
[1754221154679,3.9492,3489.5,3489.2,3.2078]
[1754221154879,1.6194,3488.6,3488.5,1.7214]
[1754221155078,7.157,3488.6,3488.5,21.0429]
[1754221155274,7.157,3488.6,3488.5,21.7144]
[1754221155783,3.2078,3489.0,3488.5,21.5251]
[1754221155976,1.6943,3489.3,3488.6,1.8377]
[1754221156287,3.3137,3489.1,3489.0,1.0499]
[1754221156477,3.9492,3489.1,3489.0,21.7144]
[1754221156782,3.9492,3489.1,3489.0,22.1966]
[1754221157284,3.9492,3489.1,3489.0,23.3628]
[1754221157483,3.3137,3489.1,3489.0,23.3628]
[1754221157880,6.0756,3489.4,3489.3,3.3698]
[1754221158079,7.55314119,3489.4,3489.3,3.3698]
[1754221158275,8.18864119,3489.4,3489.3,23.3638]
[1754221158687,7.55314119,3489.4,3489.3,23.3638]
[1754221158882,8.18864119,3489.4,3489.3,23.3638]
[1754221159085,8.18864119,3489.4,3489.3,20.4439]
[1754221159773,5.85884119,3489.4,3489.0,0.57323]
[1754221160076,3.3137,3489.1,3489.0,3.27153]
[1754221160277,3.3137,3489.1,3489.0,23.26553]
[1754221160478,3.3137,3489.1,3489.0,23.93703]
[1754221161086,4.98086456,3489.1,3489.0,23.93703]
[1754221161986,7.157,3489.4,3489.3,3.94298]
[1754221162175,8.18863864,3489.4,3489.3,23.3648]
[1754221162381,4.98083864,3489.4,3489.3,22.5]
[1754221162781,4.98083864,3489.4,3489.3,22.1986]
[1754221163380,4.69593864,3489.4,3489.3,22.1986]
[1754221164184,5.71850092,3489.4,3489.3,22.1986]
[1754221164976,5.36790092,3489.4,3489.3,21.7164]
[1754221165276,4.34533864,3489.4,3489.3,21.7164]
[1754221165481,4.98083864,3489.4,3489.3,21.7164]
[1754221166085,4.98083864,3489.4,3488.6,3.2078]
[1754221166086,3.1293,3489.0,3488.9,20.56624]
[1754221166394,4.98083864,3489.0,3488.9,21.61614]
[1754221166689,4.98083864,3489.0,3488.9,22.28764]
[1754221166890,4.34533864,3489.0,3488.9,21.01614]
[1754221167080,4.34533864,3489.0,3488.9,23.63464]
[1754221167284,4.98083864,3489.0,3488.9,23.93604]
[1754221168594,4.98083864,3489.0,3488.9,19.993]
[1754221169395,6.0068415,3489.0,3488.9,19.993]
[1754221170391,6.0068415,3489.0,3488.9,20.4429]
[1754221170591,6.0068415,3489.0,3488.9,19.993]
[1754221170791,3.9492,3488.7,3488.6,0.57329]
[1754221170992,4.98083864,3488.7,3488.6,20.56629]
[1754221171189,6.00818452,3488.7,3488.6,19.993]
[1754221171689,6.00818452,3488.7,3488.6,20.4429]
[1754221171884,6.00818452,3488.7,3488.6,21.0429]
[1754221172091,5.85883864,3488.7,3488.6,19.992]
[1754221172487,1.5778,3488.2,3488.1,1.6933]
[1754221172688,4.99223864,3488.2,3488.1,21.6853]
[1754221174785,4.99223864,3488.2,3488.1,22.1615]
[1754221174992,4.99223864,3488.2,3488.1,23.3421]
[1754221175792,4.99223864,3488.2,3488.1,22.1615]
[1754221177494,0.1057625,3488.4,3488.2,3.48826]
[1754221177790,1.53900429,3488.8,3488.7,1.61998]
[1754221177995,0.9032,3488.8,3488.7,21.9227]
[1754221178192,1.5778,3488.2,3488.1,0.5705]
[1754221178397,1.5778,3488.2,3488.1,20.5635]
[1754221178902,3.9606,3488.2,3488.1,20.5635]
[1754221179588,3.9606,3488.2,3488.1,22.2203]
[1754221179896,3.9606,3488.5,3488.4,2.2273]
[1754221180093,3.9606,3488.5,3488.4,22.2203]
[1754221180288,3.9606,3488.5,3488.4,21.3373]
[1754221180496,5.49960429,3488.5,3488.4,21.3373]
[1754221180690,5.49960429,3488.5,3488.4,19.993]
[1754221180993,5.49960429,3488.5,3488.2,0.57336]
[1754221181197,3.9606,3488.3,3488.2,0.57336]
[1754221181496,3.9606,3488.3,3488.2,19.992]
[1754221183591,5.50311283,3488.3,3488.2,19.992]
[1754221183794,3.9606,3488.3,3488.2,19.992]
[1754221184594,3.9606,3488.3,3487.9,0.57341]
[1754221184595,2.481,3488.0,3487.9,1.3443]
[1754221184791,3.9606,3488.0,3487.9,21.3363]
[1754221185498,3.9606,3488.0,3487.9,21.3605]
[1754221185791,3.9606,3488.0,3487.9,19.992]
[1754221186595,3.9606,3487.7,3487.6,42.30138]
[1754221186901,3.9606,3487.7,3487.6,21.60888]
[1754221187092,3.9606,3487.7,3487.6,21.61818]
[1754221187293,3.9606,3487.7,3487.6,21.60888]
[1754221187694,3.9606,3487.7,3487.6,21.03838]
[1754221187990,3.9606,3487.7,3487.6,1.04738]
[1754221189600,4.99271633,3487.7,3487.6,1.04738]
[1754221189799,4.99271633,3487.7,3487.6,2.12878]
[1754221189994,4.99271633,3487.7,3487.6,2.44808]
[1754221190904,1.03211633,3487.7,3487.6,3.33108]
[1754221191092,1.93531633,3487.7,3487.6,3.33108]
[1754221191293,4.34561633,3487.7,3487.6,3.33108]
[1754221191490,4.99271633,3487.7,3487.6,1.61788]
[1754221191698,4.99271633,3487.7,3487.6,3.33108]
[1754221192204,3.9606,3487.7,3487.6,3.33108]
[1754221192602,2.481,3488.0,3487.9,1.0814]
[1754221192904,4.97276704,3488.0,3487.9,1.4007]
[1754221193311,4.97276704,3488.0,3487.9,1.6875]
[1754221193607,4.97276704,3488.0,3487.9,1.3626]
[1754221193797,0.57341,3487.9,3487.7,19.991]
[1754221193994,7.1684,3487.8,3487.7,20.5615]
[1754221194197,7.1684,3487.8,3487.7,19.991]
[1754221194397,3.9606,3487.7,3487.6,1.04738]
[1754221195908,3.9606,3487.7,3487.6,1.61788]
[1754221196504,5.5906,3487.8,3487.7,2.85715]
[1754221196806,4.9435,3487.8,3487.7,2.85715]
[1754221197206,3.2078,3487.8,3487.7,2.85715]
[1754221197407,3.2078,3488.2,3487.7,2.85715]
[1754221197604,6.5213,3488.2,3488.1,1.0814]
[1754221197802,7.1684,3488.2,3488.1,2.2837]
[1754221198198,2.3828,3488.5,3488.2,1.2023]
[1754221198410,3.9606,3488.5,3488.4,1.0758]
[1754221198610,4.97283324,3488.5,3488.4,1.0758]
[1754221199806,4.97283324,3488.5,3488.4,0.5705]
[1754221200305,3.9606,3488.3,3488.2,0.5705]
[1754221200614,3.9606,3488.3,3488.2,2.2837]
[1754221202205,3.9606,3488.3,3488.2,1.4007]
[1754221204911,0.9032,3488.3,3488.2,2.2925]
[1754221205114,7.1448,3488.6,3488.5,1.382]
[1754221205412,8.15817753,3488.6,3488.5,1.382]
[1754221206703,5.06887753,3488.6,3488.5,2.2738]
[1754221207009,5.91887753,3488.6,3488.5,2.2738]
[1754221207216,8.15817753,3488.6,3488.5,2.2738]
[1754221208510,4.22117753,3488.6,3488.5,2.2738]
[1754221208811,3.2078,3488.6,3488.5,2.2738]
[1754221209017,4.0555,3488.6,3488.5,2.2738]
[1754221209220,4.9055,3488.6,3488.5,2.2738]
[1754221209715,5.9204,3488.6,3488.5,2.2738]
[1754221209918,6.4841,3488.6,3488.5,2.2738]
[1754221210120,3.937,3488.6,3488.5,2.2738]
[1754221210711,3.937,3488.6,3488.5,1.382]
[1754221211218,3.937,3488.6,3488.5,2.2738]
[1754221212414,3.937,3488.6,3488.3,0.5919]
[1754221212415,0.57334,3488.4,3488.3,0.5919]
[1754221212620,4.51034,3488.4,3488.3,20.5769]
[1754221213814,3.937,3488.4,3488.3,20.5769]
[1754221214211,4.95087083,3488.4,3488.3,19.985]
[1754221214419,3.937,3487.8,3487.6,42.32938]
[1754221214609,3.937,3487.8,3487.7,19.983]
[1754221215011,4.51045,3487.7,3487.6,1.04738]
[1754221215219,3.937,3487.7,3487.6,1.04738]
[1754221215615,8.1588259,3487.7,3487.6,1.04738]
[1754221215816,7.1448,3487.7,3487.6,1.04738]
[1754221216022,8.15881497,3487.7,3487.6,1.04738]
[1754221216214,7.1448,3487.7,3487.6,1.04738]
[1754221216822,7.1448,3487.7,3487.6,2.27788]
[1754221217127,7.1448,3487.7,3487.6,3.50898]
[1754221217423,7.1448,3487.7,3487.6,4.40078]
[1754221217424,3.2078,3487.7,3487.6,4.40078]
[1754221219216,4.0555,3487.7,3487.6,4.40078]
[1754221219516,4.9055,3487.7,3487.6,4.40078]
[1754221220118,6.0611,3487.7,3487.6,4.40078]
[1754221220323,7.1448,3487.7,3487.6,4.40078]
[1754221221424,7.1448,3487.7,3487.6,3.20778]
[1754221221829,7.1448,3487.7,3487.6,3.50898]
[1754221222120,7.1448,3487.7,3487.6,1.04738]
[1754221223229,6.0611,3487.7,3487.6,4.40078]
[1754221223624,0.6607,3488.5,3488.0,3.3534]
[1754221223925,2.2393,3488.3,3488.2,3.3534]
[1754221224127,3.23078125,3488.3,3488.2,2.4616]
[1754221224625,4.92848125,3488.3,3488.2,2.4616]
[1754221224826,4.92848125,3488.3,3488.1,19.981]
[1754221225030,5.50190449,3488.2,3488.1,19.981]
[1754221225228,1.5786,3488.0,3487.9,19.981]
[1754221225527,3.937,3488.0,3487.9,19.981]
[1754221226130,3.937,3488.0,3487.9,23.3344]
[1754221226429,3.2763,3488.0,3487.9,23.3344]
[1754221227132,0.8477,3488.0,3487.9,23.3344]
[1754221227525,2.8533,3488.2,3488.1,1.5218]
[1754221227830,0.6607,3488.5,3488.1,21.5018]
[1754221228028,4.9055,3488.6,3488.3,3.3534]
[1754221228224,4.0555,3488.6,3488.5,1.5218]
[1754221228421,4.0555,3488.6,3488.5,23.3334]
[1754221228623,4.9055,3488.6,3488.5,23.3334]
[1754221228832,5.4974,3488.6,3488.5,23.3334]
[1754221229025,2.2896,3488.6,3488.5,23.3334]
[1754221229541,2.8533,3488.6,3488.5,23.3334]
[1754221229830,2.5233,3488.9,3488.8,1.5218]
[1754221230027,2.5233,3488.9,3488.8,22.4406]
[1754221230028,4.92847436,3488.9,3488.8,22.4406]
[1754221230233,4.92847436,3488.9,3488.8,22.1394]
[1754221230735,4.92847436,3488.9,3488.8,22.4406]
[1754221231527,4.26777436,3488.9,3488.8,22.4406]
[1754221231721,4.26777436,3488.9,3488.8,23.3324]
[1754221232032,4.93517436,3488.9,3488.8,23.3324]
[1754221234529,3.2078,3489.0,3488.9,3.77235]
[1754221234732,7.50936888,3489.0,3488.9,3.77235]
[1754221235031,8.17676888,3489.0,3488.9,3.77235]
[1754221235332,7.1858,3489.0,3488.9,3.1991]
[1754221235532,7.1858,3489.0,3488.9,2.3673]
[1754221236022,7.1858,3489.0,3488.8,19.979]
[1754221236231,3.978,3488.9,3488.8,19.979]
[1754221238628,1.5831,3488.7,3488.6,0.57329]
[1754221238833,3.978,3488.7,3488.6,19.973]
[1754221239431,1.5831,3488.7,3488.3,0.6645]
[1754221239634,1.5831,3488.2,3488.1,1.99677]
[1754221239929,3.978,3488.2,3488.1,21.96877]
[1754221240135,3.978,3488.2,3488.1,22.63327]
[1754221240634,3.978,3488.2,3488.1,19.972]
[1754221242731,3.978,3488.2,3488.1,20.5449]
[1754221243033,1.7275,3488.3,3488.2,3.77246]
[1754221243436,0.5563,3488.5,3488.4,1.99673]
[1754221243636,2.8756,3488.5,3488.4,23.74343]
[1754221243939,3.3106,3488.5,3488.4,23.1701]
[1754221244236,3.978,3488.5,3488.4,23.1701]
[1754221245740,4.9689334,3488.5,3488.4,23.1701]
[1754221245933,3.978,3488.5,3488.4,23.1701]
[1754221246339,4.96909746,3488.5,3488.4,22.3383]
[1754221246648,3.978,3488.5,3488.4,22.3383]
[1754221248135,4.96930063,3488.5,3488.4,19.971]
[1754221248335,4.96930063,3488.5,3487.8,3.2078]
[1754221248336,0.99130063,3488.5,3487.8,3.2078]
[1754221248537,3.978,3487.9,3487.8,19.968]
[1754221249846,3.978,3487.7,3487.6,1.04738]
[1754221250634,4.95880919,3487.7,3487.6,1.04738]
[1754221250830,3.978,3487.7,3487.6,1.04738]
[1754221254145,3.978,3487.7,3487.6,1.62028]
[1754221254645,3.978,3487.7,3487.6,1.04738]
[1754221257535,3.978,3487.0,3486.9,2.08302088]
[1754221257742,3.978,3487.0,3486.9,22.05102088]
[1754221257940,3.978,3487.0,3486.9,22.62392088]
[1754221259747,3.3106,3487.0,3486.9,24.68082088]
[1754221261242,1.7275,3487.2,3487.1,1.5722]
[1754221261444,3.3106,3487.2,3487.1,3.6978]
[1754221261644,3.978,3487.2,3487.1,3.6978]
[1754221261852,2.8756,3487.2,3487.1,3.0685]
[1754221262050,2.8756,3487.2,3487.1,3.7072]
[1754221262239,3.9474,3487.2,3487.1,2.8754]
[1754221262847,3.9474,3487.2,3487.1,2.2367]
[1754221267048,3.9474,3487.2,3486.9,21.63912088]
[1754221267049,2.14743,3487.2,3486.9,1.03242088]
[1754221267250,3.0427,3487.0,3486.9,1.03242088]
[1754221267449,4.49946,3487.0,3486.9,1.03242088]
[1754221268248,3.9259,3487.0,3486.9,2.64602088]
[1754221268453,3.9259,3487.0,3486.9,3.85142088]
[1754221269352,3.9259,3487.0,3486.9,2.64602088]
[1754221269553,3.9259,3487.0,3486.9,2.06332088]
[1754221269952,3.9259,3487.0,3486.9,1.44602088]
[1754221270650,3.9259,3487.0,3486.9,2.02872088]
[1754221270852,3.9259,3487.0,3486.9,2.64602088]
[1754221271754,3.9259,3487.0,3486.9,3.85142088]
[1754221272853,3.9259,3487.0,3486.9,3.21272088]
[1754221273749,3.9259,3487.0,3486.9,3.85142088]
[1754221277861,3.9259,3487.0,3486.9,4.68752088]
[1754221277862,3.2799,3487.0,3486.9,4.68752088]
[1754221278161,2.8541,3487.0,3486.9,4.68752088]
[1754221278862,3.2799,3487.0,3486.9,4.68752088]
[1754221279062,3.9259,3487.0,3486.9,4.68752088]
[1754221279261,3.9259,3487.0,3486.9,1.03242088]
[1754221279460,3.9259,3487.0,3486.9,20.99342088]
[1754221279855,3.9259,3487.0,3486.9,21.40702088]
[1754221280055,3.9259,3487.0,3486.9,23.81242088]
[1754221280763,4.90449574,3487.0,3486.9,23.17372088]
[1754221281156,3.9259,3487.0,3486.9,23.81242088]
[1754221281464,4.90455334,3487.0,3486.9,23.81242088]
[1754221282362,4.90455334,3487.0,3486.9,20.99142088]
[1754221282863,4.90455334,3487.0,3486.9,22.02232088]
[1754221283057,4.90455334,3487.0,3486.9,22.60502088]
[1754221283259,4.90455334,3487.0,3486.9,23.17172088]
[1754221283560,4.90455334,3487.0,3486.9,24.64652088]
[1754221283864,4.25855334,3487.0,3486.9,24.64652088]
[1754221284364,4.25855334,3487.0,3486.9,21.40502088]
[1754221284568,4.90455334,3487.0,3486.9,23.81042088]
[1754221285461,4.90455334,3487.0,3486.9,23.17172088]
[1754221285866,4.90455334,3487.0,3486.9,1.03242088]
[1754221286065,4.90455334,3487.0,3486.9,20.98942088]
[1754221286563,4.90455334,3487.0,3486.9,21.40302088]
[1754221286960,4.90455334,3487.0,3486.9,22.02032088]
[1754221287961,4.90455334,3487.0,3486.9,22.60302088]
[1754221288158,1.83385334,3487.0,3486.9,24.64452088]
[1754221288356,2.71705334,3487.0,3486.9,24.64452088]
[1754221288562,3.83275334,3487.0,3486.9,24.64452088]
[1754221288763,4.25855334,3487.0,3486.9,24.64452088]
[1754221288963,2.36885334,3487.0,3486.9,24.64452088]
[1754221289574,3.25205334,3487.0,3486.9,24.64452088]
[1754221289963,2.36885334,3487.0,3486.9,24.64452088]
[1754221290164,0.97865334,3487.0,3486.9,24.64452088]
[1754221290869,1.83385334,3487.0,3486.9,24.64452088]
[1754221291361,0.97865334,3487.0,3486.9,24.64452088]
[1754221292674,1.9629,3487.2,3487.1,1.5546]
[1754221292971,2.943393,3487.2,3487.1,23.5862]
[1754221293368,0.980493,3487.2,3487.1,23.5862]
[1754221293577,2.4037,3487.4,3487.3,1.5546]
[1754221293770,4.86957402,3487.4,3487.3,22.7438]
[1754221294275,8.07737402,3487.4,3487.3,22.1356]
[1754221296280,8.07737402,3487.4,3487.3,20.3496]
[1754221296475,1.5366,3487.1,3487.0,2.7918]
[1754221296682,3.8891,3487.1,3487.0,22.7408]
[1754221296881,3.8891,3487.1,3487.0,20.3466]
[1754221297080,2.11016,3487.0,3486.9,1.03242088]
[1754221297384,8.65068033,3487.0,3486.9,20.98142088]
[1754221298884,9.67924029,3487.0,3486.9,20.98142088]
[1754221299486,8.65068033,3487.0,3486.9,1.03242088]
[1754221299887,9.67924029,3487.0,3486.9,1.03242088]
[1754221302186,1.4854,3486.8,3484.4,3.2078]
[1754221302387,4.5944,3484.8,3484.7,0.5813]
[1754221302585,5.12822139,3484.8,3484.7,3.6448]
[1754221302887,0.57397,3484.5,3484.2,14.74]
[1754221303096,3.8891,3484.0,3483.6,23.1548]
[1754221303280,3.2078,3484.4,3483.9,2.00660989]
[1754221303486,1.9629,3484.3,3484.2,3.6448]
[1754221303787,2.3865,3484.3,3484.2,3.6448]
[1754221303985,3.8891,3484.3,3484.2,3.6448]
[1754221304280,4.3208,3484.8,3483.9,1.03330989]
[1754221304481,0.8671,3484.6,3484.0,24.16586]
[1754221304696,2.3865,3484.7,3484.6,2.4076]
[1754221304985,2.3865,3484.7,3484.2,0.57402]
[1754221304986,4.46305,3484.7,3484.3,0.6082]
[1754221305192,1.5366,3484.3,3484.2,0.9789]
[1754221305492,3.0392,3484.3,3484.2,0.9733]
[1754221305790,3.8891,3484.3,3484.2,0.9733]
[1754221306279,3.2078,3484.8,3484.7,0.57393]
[1754221306478,3.2078,3484.8,3484.7,4.21873]
[1754221307389,1.6812,3484.8,3484.7,24.17773]
[1754221307591,4.9248,3485.7,3485.2,2.0786]
[1754221307796,6.4614,3485.7,3485.6,1.5546]
[1754221307984,7.0969,3485.7,3485.6,1.6023]
[1754221308290,4.0749,3485.7,3485.6,2.1836]
[1754221308487,3.2078,3485.7,3485.6,3.6332]
[1754221308789,0.8499,3486.3,3485.3,19.979]
[1754221308790,4.0749,3486.1,3486.0,3.6332]
[1754221308986,5.5011,3486.1,3486.0,3.6332]
[1754221309195,3.2078,3486.1,3486.0,3.6332]
[1754221309390,2.6773,3486.8,3486.7,0.3976]
[1754221309589,4.86578084,3486.8,3486.7,0.9733]
[1754221309784,3.2536,3486.8,3486.7,2.7918]
[1754221309990,3.2536,3486.8,3486.7,3.6332]
[1754221309991,0.8671,3486.8,3486.7,3.6332]
[1754221310183,1.4434,3486.8,3486.7,1.9984]
[1754221310389,41.88347,3487.6,3486.2,2.1628]
[1754221310390,1.5366,3486.3,3486.2,2.1628]
[1754221310695,3.8891,3486.3,3486.2,2.7918]
[1754221311494,2.3525,3486.8,3486.5,1.2372]
[1754221311794,3.8891,3486.7,3486.6,2.7918]
[1754221313396,3.8891,3486.7,3486.6,3.6332]
[1754221313397,2.83,3486.7,3486.6,3.6332]
[1754221313995,3.8891,3486.7,3486.6,2.7918]
[1754221314292,3.8891,3486.7,3486.6,2.1836]
[1754221319188,2.11022,3486.7,3486.2,0.57369]
[1754221319396,3.8891,3486.4,3486.3,1.6023]
[1754221319696,1.5366,3486.4,3486.2,1.18189]
[1754221319883,3.8891,3486.3,3486.1,19.981]
[1754221320089,3.8891,3486.2,3486.1,20.5567]
[1754221320388,3.8891,3486.2,3486.1,20.9543]
[1754221320585,3.8891,3486.2,3486.1,21.5833]
[1754221320789,3.8891,3486.2,3486.1,22.1646]
[1754221322690,3.8891,3486.2,3486.1,22.7972]
[1754221323295,3.8891,3486.2,3486.1,2.8162]
[1754221323688,1.5507,3486.5,3486.4,1.5599]
[1754221323883,3.8472,3486.5,3486.4,2.7977]
[1754221324089,3.8472,3486.5,3486.4,3.6635]
[1754221324292,0.8145,3486.5,3486.4,3.6635]
[1754221324486,3.0327,3486.8,3486.7,2.7977]
[1754221324695,0.6576,3487.4,3486.8,1.2378]
[1754221324891,6.2405,3487.5,3487.4,2.7977]
[1754221325091,7.055,3487.5,3487.4,2.7977]
[1754221325294,3.2078,3487.5,3487.4,3.6635]
[1754221325491,1.03014226,3488.2,3487.7,0.5701]
[1754221325691,0.97527351,3488.1,3488.0,4.23689]
[1754221326096,3.2078,3488.4,3488.3,2.13325]
[1754221326299,4.18291466,3488.4,3488.3,4.23685]
[1754221327095,3.2078,3488.4,3488.3,4.23685]
[1754221328593,3.2078,3488.4,3488.3,3.6635]
[1754221330498,3.2078,3488.4,3488.0,0.57339]
[1754221330798,3.8472,3488.2,3488.1,19.945]
[1754221330996,3.8472,3488.2,3488.1,22.7376]
[1754221331199,3.1896,3488.2,3488.1,23.5983]
[1754221332005,1.482,3488.5,3488.1,23.5983]
[1754221332302,2.3751,3488.3,3488.2,2.7926]
[1754221332498,3.0327,3488.3,3488.2,2.7926]